Workbook

Sheet ADA CONSTRUCTION NOV 2020 CAA
A1: DEPARTMENT OF TRANSPORTATION - CALTRANS
A2: DBE Commitment at Award (CAA) on Federally Funded Major Construction Contracts - October 1, 2020 - August 31, 2021
A4: Total Award Amount Year-to-Date (YTD) | B4: Total DBE Commitment Amount YTD | E4: Total Prime Contracts Awarded YTD
A5: =300919421+333000 -> 301252421 | B5: =SUM(B7:B18) -> 55716596.3 | E5: =SUM(B206:B218,H206:H214,E206:E218) -> 49
A6: Groups | B6: Commitment Dollars YTD | C6: Firms YTD | D6: Contracts YTD | E6: % of Contracts | F6: % of DBE $ | G6: % of Total $
A7: Hispanic American Male | B7: =SUMIF(C64:C91,"m", B64:B91) -> 11618141.5 | C7: =COUNTIF(C64:C91,"M") -> 22 | D7: =SUMIF(C64:C91,"M",D64:D91) -> 31 | E7: =D7/D20 -> 0.1684782609 | F7: =B7/B5 -> 0.208522097 | G7: =B7/A5 -> 0.03856613488
A8: Hispanic American Female | B8: =SUMIF(C64:C91,"F", B64:B91) -> 511999.7 | C8: =COUNTIF(C64:C91,"F") -> 4 | D8: =SUMIF(C64:C91,"F",D64:D91) -> 6 | E8: =D8/D20 -> 0.03260869565 | F8: =B8/B5 -> 0.009189357104 | G8: =B8/A5 -> 0.001699570408
A9: African American Male | B9: =SUMIF(C99:C106,"m", B99:B106) -> 908499.77 | C9: =COUNTIF(C99:C106,"M") -> 5 | D9: =SUMIF(C99:C106,"M",D99:D106) -> 9 | E9: =D9/D20 -> 0.04891304348 | F9: =B9/B5 -> 0.0163057299 | G9: =B9/A5 -> 0.003015742635
A10: African American Female | B10: =SUMIF(C99:C106,"F", B99:B106) -> 370000 | C10: =COUNTIF(C99:C106,"F") -> 2 | D10: =SUMIF(C99:C106,"F",D99:D106) -> 2 | E10: =D10/D20 -> 0.01086956522 | F10: =B10/B5 -> 0.006640750235 | G10: =B10/A5 -> 0.001228205897
A11: Asian Pacific Male | B11: =SUMIF(C121:C152,"m", B121:B152) -> 18096369.09 | C11: =COUNTIF(C121:C152,"M") -> 23 | D11: =SUMIF(C121:C152,"M",D121:D152) -> 51 | E11: =D11/D20 -> 0.277173913 | F11: =B11/B5 -> 0.3247931549 | G11: =B11/A5 -> 0.06007045198
A12: Asian Pacific Female | B12: =SUMIF(C121:C152,"F", B121:B152) -> 3428458.55 | C12: =COUNTIF(C121:C152,"F") -> 8 | D12: =SUMIF(C121:C152,"F",D121:D152) -> 11 | E12: =D12/D20 -> 0.0597826087 | F12: =B12/B5 -> 0.06153388358 | G12: =B12/A5 -> 0.01138068381
A13: Subcontinent Asian Male | B13: =SUMIF(C109:C118,"m", B109:B118) -> 10785185.7 | C13: =COUNTIF(C109:C118,"M") -> 8 | D13: =SUMIF(C109:C118,"M",D109:D118) -> 21 | E13: =D13/D20 -> 0.1141304348 | F13: =B13/B5 -> 0.1935722283 | G13: =B13/A5 -> 0.03580115859
A14: Subcontinent Asian Female | B14: =SUMIF(C109:C118,"F", B109:B118) -> 166000 | C14: =COUNTIF(C109:C118,"F") -> 1 | D14: =SUMIF(C109:C118,"F",D109:D118) -> 1 | E14: =D14/D20 -> 0.005434782609 | F14: =B14/B5 -> 0.002979363619 | G14: =B14/A5 -> 0.000551032916
A15: Native American Male | B15: =SUMIF(C94:C96,"m", B94:B96) -> 200000 | C15: =COUNTIF(C94:C96,"M") -> 1 | D15: =SUMIF(C94:C96,"M",D94:D96) -> 1 | E15: =D15/D20 -> 0.005434782609 | F15: =B15/B5 -> 0.003589594722 | G15: =B15/A5 -> 0.0006638950795
A16: Native American Female | B16: =SUMIF(C94:C96,"F", B94:B96) -> 340000 | C16: =COUNTIF(C94:C96,"F") -> 1 | D16: =SUMIF(C94:C96,"F",D94:D96) -> 1 | E16: =D16/D20 -> 0.005434782609 | F16: =B16/B5 -> 0.006102311027 | G16: =B16/A5 -> 0.001128621635
A17: Non Minority Women | B17: =SUMIF(C160:C201,"F", B160:B201) -> 9291941.99 | C17: =COUNTIF(C160:C201,"F") -> 40 | D17: =SUMIF(C160:C201,"F",D160:D201) -> 50 | E17: =D17/D20 -> 0.2717391304 | F17: =B17/B5 -> 0.1667715296 | G17: =B17/A5 -> 0.03084437283
A18: Non Minority Men | B18: =SUMIF(C156:C157,"F", B156:B157) -> 0 | C18: =COUNTIF(C156:C157,"F") -> 0 | D18: =SUMIF(C156:C157,"F",D156:D157) -> 0 | E18: =D18/D20 -> 0 | F18: =B18/B5 -> 0 | G18: =B18/A5 -> 0
A20: Total | C20: =SUM(C7:C19) -> 115 | D20: =SUM(D7:D19) -> 184
A21: Total Prime Contracts Awarded | B21: =SUM(B206:B218,E206:E218,H206:H214) -> 49
A22: Red Italic = DBE firm as Prime
A23: BOLD = women
A63: Hispanic American | B63: Dollars | C63: M/F | D63: Contract Count | E63: Contract #s | F63: Prime count | G63: Prime Names | H63: Districts
A64: ACT CONSULTING ENGINEERS | B64: ='[1]DPAC Worksheet'!G8 -> 2840315.5 | C64: M | D64: 3 | E64: =FetchComment(D64) -> 12A1857 12A1863 07A5041 | F64: 1 | G64: =FetchComment(F64) -> TRANSYSTEMS CORPORATION | H64: 7,12
A65: Advanced Technology Labratories | B65: ='[1]DPAC Worksheet'!G12 -> 270000 | C65: M | D65: 1 | E65: =FetchComment(D65) -> Suyat, Christian@DOT: 03A3148 | F65: 1 | G65: =FetchComment(F65) -> Suyat, Christian@DOT: Geocon Consultants | H65: 3
A66: ALTA LAND SURVEYING INC | B66: ='[1]DPAC Worksheet'!G18 -> 6000 | C66: M | D66: 1 | E66: =FetchComment(D66) -> 11A3117 | F66: 1 | G66: =FetchComment(F66) -> KIMLEY-HORN & ASSOCIATES INC | H66: 11
A67: ARAGON GEOTECHNICAL | B67: ='[1]DPAC Worksheet'!G23 -> 460000 | C67: M | D67: 1 | E67: =FetchComment(D67) -> 08A3187 | F67: 1 | G67: =FetchComment(F67) -> ALTA VISTA SOLUTIONS | H67: 8
A68: CABRINHA, HEARN & ASSOCIATES | B68: ='[1]DPAC Worksheet'!G27 -> 382500 | C68: M | D68: 2 | E68: =FetchComment(D68) -> Suyat, Christian@DOT: 06A2649 07A5059 | F68: 1 | G68: =FetchComment(F68) -> Suyat, Christian@DOT: Stantec Consulting Services | H68: 6, 7
A69: CADRE DESIGN | B69: ='[1]DPAC Worksheet'!G33 -> 80000 | C69: M | D69: 1 | E69: =FetchComment(D69) -> 59A1107 | F69: 1 | G69: =FetchComment(F69) -> KLEINFELDER INC | H69: 59
A70: CALIFORNIA TESTING & | B70: ='[1]DPAC Worksheet'!C7 -> 92000 | C70: F | D70: 1 | E70: =FetchComment(D70) -> 08A3187 | F70: 1 | G70: =FetchComment(F70) -> ALTA VISTA SOLUTIONS | H70: 8
A71: CAPITAL TRAFFIC SERVICES INC | B71: ='[1]DPAC Worksheet'!G43 -> 32000 | C71: M | D71: 1 | E71: =FetchComment(D71) -> 03A3130 | F71: 1 | G71: =FetchComment(F71) -> MARK THOMAS & COMPANY INC | H71: 3
A72: Coast Surveying, Inc. | B72: ='[1]DPAC Worksheet'!G47 -> 120000 | C72: M | D72: 1 | E72: =FetchComment(D72) -> Suyat, Christian@DOT: 07A5059 | F72: 1 | G72: =FetchComment(F72) -> Suyat, Christian@DOT: Stantec Consulting Services | H72: 7
A73: D'LEON CONSULTING | B73: ='[1]DPAC Worksheet'!G57 -> 300000 | C73: M | D73: 1 | E73: =FetchComment(D73) -> 07A5026 | F73: 1 | G73: =FetchComment(F73) -> HNTB CORPORATION | H73: 7
A74: DYNAMIC CONSULTING | B74: ='[1]DPAC Worksheet'!G69 -> 50000 | C74: M | D74: 1 | E74: =FetchComment(D74) -> 11A3122 | F74: 1 | G74: =FetchComment(F74) -> JACOBS ENGINEERING GROUP | H74: 11
A75: EARTHVIEW SCIENCE | B75: ='[1]DPAC Worksheet'!C13 -> 249999.7 | C75: F | D75: 2 | E75: =FetchComment(D75) -> 04A6021 06A2671 | F75: 2 | G75: =FetchComment(F75) -> JACOBS ENGINEERING GROUP Parson Transportation Group | H75: 4,6
A76: ESTRADA LAND PLANNING | B76: ='[1]DPAC Worksheet'!C22 -> 130000 | C76: F | D76: 2 | E76: =FetchComment(D76) -> 11A3122 11A3166 | F76: 2 | G76: =FetchComment(F76) -> JACOBS ENGINEERING GROUP AECOM Technical Services | H76: 11
A77: Fountainhead Consulting Corporation | B77: ='[1]DPAC Worksheet'!G74 -> 1200000 | C77: M | D77: 2 | E77: =FetchComment(D77) -> Suyat, Christian@DOT: 07A5030 03A3234 | F77: 2 | G77: =FetchComment(F77) -> Suyat, Christian@DOT: AECOM Technical Services Psomas | H77: 3, 7
A78: JLB TRAFFIC ENGINEERING | B78: ='[1]DPAC Worksheet'!G82 -> 552000 | C78: M | D78: 2 | E78: =FetchComment(D78) -> 06A2655 06A2667 | F78: 1 | G78: =FetchComment(F78) -> NCM CORP | H78: 6
A79: Katherine Padilla & Associates | B79: ='[1]DPAC Worksheet'!C26 -> 40000 | C79: F | D79: 1 | E79: =FetchComment(D79) -> Suyat, Christian@DOT: 11A3166 | F79: 1 | G79: =FetchComment(F79) -> Suyat, Christian@DOT: AECOM Technical Services | H79: 11
A80: LA SALLE SOLUTIONS | B80: ='[1]DPAC Worksheet'!G91 -> 226576 | C80: M | D80: 2 | E80: =FetchComment(D80) -> 12A1860 07a5044 | F80: 1 | G80: =FetchComment(F80) -> TRC ENGINEERS INC | H80: 7, 12
A81: LOPEZ ENGINEERING | B81: ='[1]DPAC Worksheet'!G102 -> 450000 | C81: M | D81: 1 | E81: =FetchComment(D81) -> 11A3122 | F81: 1 | G81: =FetchComment(F81) -> JACOBS ENGINEERING GROUP | H81: 11
A82: MA ENGINEERING | B82: ='[1]DPAC Worksheet'!G107 -> 300000 | C82: M | D82: 1 | E82: =FetchComment(D82) -> 07A5026 | F82: 1 | G82: =FetchComment(F82) -> HNTB CORPORATION | H82: 7
A83: MONTEZ GROUP INC | B83: ='[1]DPAC Worksheet'!G114 -> 60000 | C83: M | D83: 1 | E83: =FetchComment(D83) -> 04A6043 | F83: 1 | G83: =FetchComment(F83) -> ARCADIS U.S. INC | H83: 4
A84: NOMAD ECOLOGY INC | B84: ='[1]DPAC Worksheet'!G121 -> 100000 | C84: M | D84: 1 | E84: =FetchComment(D84) -> 04A6021 | F84: 1 | G84: =FetchComment(F84) -> JACOBS ENGINEERING GROUP | H84: 4
A85: Ramos Consulting Services, Inc. | B85: ='[1]DPAC Worksheet'!G125 -> 600000 | C85: M | D85: 1 | E85: =FetchComment(D85) -> Suyat, Christian@DOT: 07A5030 | F85: 1 | G85: =FetchComment(F85) -> Suyat, Christian@DOT: AECOM Technical Services | H85: 7
A86: RUZ CONSULTING ENGINEERING | B86: ='[1]DPAC Worksheet'!G134 -> 420000 | C86: M | D86: 2 | E86: =FetchComment(D86) -> 07A4986 03A3234 | F86: 1 | G86: =FetchComment(F86) -> ARCADIS U.S. INC | H86: 7
A87: UNDER CONSTRUCTION | B87: ='[1]DPAC Worksheet'!G142 -> 318000 | C87: M | D87: 2 | E87: =FetchComment(D87) -> 11A3117 03A3120 | F87: 2 | G87: =FetchComment(F87) -> KIMLEY-HORN & ASSOCIATES INC TRC ENGINEERS INC | H87: 3,11
A88: UNICO Engineering Consulting | B88: ='[1]DPAC Worksheet'!G147 -> 2400750 | C88: M | D88: 2 | E88: =FetchComment(D88) -> Suyat, Christian@DOT: 03A3148 03A3234 | F88: 2 | G88: =FetchComment(F88) -> Suyat, Christian@DOT: Geocon Consultants Psomas | H88: 1,3
A89: V&A, Inc. | B89: ='[1]DPAC Worksheet'!G152 -> 450000 | C89: M | D89: 1 | E89: =FetchComment(D89) -> Suyat, Christian@DOT: 07A5030 | F89: 1 | G89: =FetchComment(F89) -> Suyat, Christian@DOT: AECOM Technical Services | H89: 7
A93: Native American | B93: Dollars | C93: M/F | D93: Contract | F93: Prime | H93: Districts
A94: Bajada Geosciences, Inc. | B94: ='[1]DPAC Worksheet'!S5 -> 340000 | C94: F | D94: 1 | E94: =FetchComment(D94) -> Suyat, Christian@DOT: 03A3157 | F94: 1 | G94: =FetchComment(F94) -> Suyat, Christian@DOT: WSP USA, Inc. | H94: 3
A95: FMF PANDION | B95: ='[1]DPAC Worksheet'!W7 -> 200000 | C95: M | D95: 1 | E95: =FetchComment(D95) -> 07A5026 | F95: 1 | G95: =FetchComment(F95) -> HNTB CORPORATION | H95: 7
A98: African American | B98: Dollars | C98: M/F | D98: Contract | F98: Prime | H98: Districts
A99: BIOMAAS | B99: ='[1]DPAC Worksheet'!AE6 -> 200000 | C99: M | D99: 1 | E99: =FetchComment(D99) -> 04A6021 | F99: 1 | G99: =FetchComment(F99) -> JACOBS ENGINEERING GROUP INC | H99: 4
A100: DAVID ENGINEERING LLC | B100: ='[1]DPAC Worksheet'!AE12 -> 50000 | C100: M | D100: 1 | E100: =FetchComment(D100) -> 11A3122 | F100: 1 | G100: =FetchComment(F100) -> JACOBS ENGINEERING GROUP INC | H100: 11
A101: ELLE CONSULTANTS | B101: ='[1]DPAC Worksheet'!AA10 -> 250000 | C101: F | D101: 1 | E101: =FetchComment(D101) -> 04A6036 | F101: 1 | G101: =FetchComment(F101) -> ELLE CONSULTANTS | H101: 4
A102: Environmental Review Partners, Inc. | B102: ='[1]DPAC Worksheet'!AE16 -> 32499.77 | C102: M | D102: 1 | E102: =FetchComment(D102) -> Suyat, Christian@DOT: 06A2673 | F102: 1 | G102: =FetchComment(F102) -> Suyat, Christian@DOT: ICF Jones & Stokes | H102: 6
A103: O2EPCM INC | B103: ='[1]DPAC Worksheet'!AA20 -> 120000 | C103: F | D103: 1 | E103: =FetchComment(D103) -> 07A4986 | F103: 1 | G103: =FetchComment(F103) -> ARCADIS U.S. INC | H103: 7
A104: TRIUNITY ENGINEERING | B104: ='[1]DPAC Worksheet'!AE27 -> 146000 | C104: M | D104: 4 | E104: =FetchComment(D104) -> 03A3117 53A0252 04A6043 06A2681 | F104: 2 | G104: =FetchComment(F104) -> KREBS CORPORATION ARCADIS U.S. INC | H104: 3,4,6,53
A105: WILTEC | B105: ='[1]DPAC Worksheet'!AE36 -> 480000 | C105: M | D105: 2 | E105: =FetchComment(D105) -> 07A5005 03A3147 | F105: 2 | G105: =FetchComment(F105) -> JACOBS ENGINEERING GROUP INC DKS Associates | H105: 3, 7
A108: Sub Cont Asian | B108: Dollars | C108: M/F | D108: Contract | F108: Prime | H108: Districts
A109: AMC INC | B109: ='[1]DPAC Worksheet'!AM12 -> 1660960 | C109: M | D109: 6 | E109: =FetchComment(D109) -> 07A4986 08A3183 12A1860 07A5030 59A1130 07a5044 | F109: 5 | G109: =FetchComment(F109) -> ARCADIS U.S. INC WSP USA INC TRC ENGINEERS INC AECOM Technical Services Alta Vista Solutions, Inc. | H109: 7,8,12,59
A110: CHAUDHARY & ASSOCIATES INC | B110: ='[1]DPAC Worksheet'!AM24 -> 6724827.4 | C110: M | D110: 4 | E110: =FetchComment(D110) -> 06A2613 59A1107 03A3130 04A6161 | F110: 3 | G110: =FetchComment(F110) -> CHAUDHARY & ASSOCIATES INC KLEINFELDER INC MARK THOMAS & COMPANY INC | H110: 3,4,6,59
A111: EARTH MECHANICS | B111: ='[1]DPAC Worksheet'!AM35 -> 262000 | C111: M | D111: 3 | E111: =FetchComment(D111) -> 11A3117 07A5041 59A1136 | F111: 3 | G111: =FetchComment(F111) -> KIMLEY-HORN ^ ASSOICATES INC TransSystems Corporation TY Lin International | H111: 7,11,59
A112: IQON ENGINEERS INC | B112: ='[1]DPAC Worksheet'!AM41 -> 608200 | C112: M | D112: 2 | E112: =FetchComment(D112) -> 08A3229 12A1887 | F112: 2 | G112: =FetchComment(F112) -> PARSONS TRANSPORTATION GROUP INC Fountainhead Consulting Corp | H112: 8, 12
A113: KAL KRISHNAN CONSULTING | B113: ='[1]DPAC Worksheet'!AM48 -> 480000 | C113: M | D113: 2 | E113: =FetchComment(D113) -> 07A4986 07A5030 | F113: 2 | G113: =FetchComment(F113) -> ARCADIS U.S. INC AECOM Technical Services | H113: 7
A114: Reddy Anthropology Consulting | B114: ='[1]DPAC Worksheet'!AI5 -> 166000 | C114: F | D114: 1 | E114: =FetchComment(D114) -> Suyat, Christian@DOT: 03A3163 | F114: 1 | G114: =FetchComment(F114) -> Suyat, Christian@DOT: Pacific Legacy, Inc | H114: 3
A115: S2 ENGINEERING | B115: ='[1]DPAC Worksheet'!AM55 -> 410960 | C115: M | D115: 2 | E115: =FetchComment(D115) -> 12A1860 07a5044 | F115: 1 | G115: =FetchComment(F115) -> TRC ENGINEERS INC | H115: 7, 12
A116: T J K M | B116: ='[1]DPAC Worksheet'!AM63 -> 558238.3 | C116: M | D116: 1 | E116: =FetchComment(D116) -> 06A2647 | F116: 1 | G116: =FetchComment(F116) -> MICHAEL BAKER INTERNATIONAL INC | H116: 6
A117: TORRENT LABORATORY INC | B117: ='[1]DPAC Worksheet'!AM73 -> 80000 | C117: M | D117: 1 | E117: =FetchComment(D117) -> 59A1107 | F117: 1 | G117: =FetchComment(F117) -> KLEINFELDER INC | H117: 59
A120: Asian Pacific | B120: Dollars | C120: M/F | D120: Contract | F120: Prime | H120: Districts
A121: 1ST CHOICE DBE INC | B121: ='[1]DPAC Worksheet'!O6 -> 84000 | C121: M | D121: 1 | E121: =FetchComment(D121) -> 03A3117 | F121: 1 | G121: =FetchComment(F121) -> 03A3117 | H121: 3
A122: A P ENGINEERING AND | B122: ='[1]DPAC Worksheet'!O13 -> 80000 | C122: M | D122: 1 | E122: =FetchComment(D122) -> 59A1107 | F122: 1 | G122: =FetchComment(F122) -> KLEINFELDER INC | H122: 59
A123: ADVANTEC CONSULTING ENGINEERS | B123: ='[1]DPAC Worksheet'!O27 -> 3231663.1 | C123: M | D123: 6 | E123: =FetchComment(D123) -> 11A3117 11A3122 12A1857 07A5005 12A1869 07A5041 | F123: 4 | G123: =FetchComment(F123) -> KIMLEY-HORN ^ ASSOICATES INC JACOBS ENGINEERING GROUP INC TRANSYSTEMS CORPORATION HNTB CORPORATION | H123: 7,11,12
A124: Aliquot Associates | B124: ='[1]DPAC Worksheet'!O32 -> 800000 | C124: M | D124: 1 | E124: =FetchComment(D124) -> Suyat, Christian@DOT: 04A6161 | F124: 1 | G124: =FetchComment(F124) -> Suyat, Christian@DOT: Chaudhary & Associates, Inc. | H124: 4
A125: ALLIANCE GROUP CONSULTING | B125: ='[1]DPAC Worksheet'!O42 -> 300000 | C125: M | D125: 1 | E125: =FetchComment(D125) -> 07A5026 | F125: 1 | G125: =FetchComment(F125) -> HNTB CORPORATION | H125: 7
A126: Asset Laboratories | B126: ='[1]DPAC Worksheet'!K6 -> 180000 | C126: F | D126: 1 | E126: =FetchComment(D126) -> Suyat, Christian@DOT: 03A3148 | F126: 1 | G126: =FetchComment(F126) -> Suyat, Christian@DOT: Geocon Consultants | H126: 3
A127: Axiom Engineering | B127: ='[1]DPAC Worksheet'!O47 -> 900000 | C127: M | D127: 1 | E127: =FetchComment(D127) -> Suyat, Christian@DOT: 59A1130 | F127: 1 | G127: =FetchComment(F127) -> Suyat, Christian@DOT: Alta Vista Solutions, Inc. | H127: 59
A128: C2PM | B128: ='[1]DPAC Worksheet'!K12 -> 310960 | C128: F | D128: 2 | E128: =FetchComment(D128) -> 12A1860 07a5044 | F128: 1 | G128: =FetchComment(F128) -> TRC ENGINEERS INC | H128: 7,12
A129: CL SURVEYING AND MAPPING | B129: ='[1]DPAC Worksheet'!O57 -> 1188387.2 | C129: M | D129: 4 | E129: =FetchComment(D129) -> 08A3230 06A2641 07A5059 07A5067 | F129: 3 | G129: =FetchComment(F129) -> GUIDA SURVEYING INC STANTEC CONSULTING SERVICES INC Psomas | H129: 6,7,8
A130: CNS ENGINEERS, INC | B130: ='[1]DPAC Worksheet'!O62 -> 50000 | C130: M | D130: 1 | E130: =FetchComment(D130) -> Suyat, Christian@DOT: 59A1136 | F130: 1 | G130: =FetchComment(F130) -> Suyat, Christian@DOT: T.Y. Lin International | H130: 59
A131: Elite Transporation Group, Inc. | B131: ='[1]DPAC Worksheet'!O67 -> 560000 | C131: M | D131: 1 | E131: =FetchComment(D131) -> Suyat, Christian@DOT: 03A3147 | F131: 1 | G131: =FetchComment(F131) -> Suyat, Christian@DOT: DKS Associates | H131: 7
A132: FPL & ASSOCIATES INC | B132: ='[1]DPAC Worksheet'!O78 -> 900000 | C132: M | D132: 1 | E132: =FetchComment(D132) -> 07A5005 | F132: 1 | G132: =FetchComment(F132) -> JACOBS ENGINEERING GROUP INC | H132: 7
A133: I D C Consulting Engineers | B133: ='[1]DPAC Worksheet'!K17 -> 100000 | C133: F | D133: 1 | E133: =FetchComment(D133) -> Suyat, Christian@DOT: 59A1136 | F133: 1 | G133: =FetchComment(F133) -> Suyat, Christian@DOT: TY LIN | H133: 59
A134: J Myrah Environmental, LLC | B134: ='[1]DPAC Worksheet'!K21 -> 64999.55 | C134: F | D134: 1 | E134: =FetchComment(D134) -> Suyat, Christian@DOT: 06A2673 | F134: 1 | G134: =FetchComment(F134) -> Suyat, Christian@DOT: ICF Jones & Stokes | H134: 6
A135: LIN CONSULTING | B135: ='[1]DPAC Worksheet'!O89 -> 1467323.1 | C135: M | D135: 6 | E135: =FetchComment(D135) -> 12A1857 12A1861 12A1863 08A3229 06A2655 06A2667 | F135: 4 | G135: =FetchComment(F135) -> TRANSYSTEMS CORPORATION AECOM TECHNICAL SERVICES INC PARSONS TRANSPORTATION GROUP INC NCM CORP | H135: 6,8,12
A136: LRS PROGRAM DELIVERY | B136: ='[1]DPAC Worksheet'!K28 -> 480000 | C136: F | D136: 1 | E136: =FetchComment(D136) -> 03A3120 | F136: 1 | G136: =FetchComment(F136) -> TRC ENGINEERS | H136: 3
A137: MGE Engineering | B137: ='[1]DPAC Worksheet'!O95 -> 1100000 | C137: M | D137: 2 | E137: =FetchComment(D137) -> Suyat, Christian@DOT: 03A3234 59A1136 | F137: 2 | G137: =FetchComment(F137) -> Suyat, Christian@DOT: Psomas T.Y. Lin International | H137: 3,59
A138: Mozamo Engineering, Inc. | B138: ='[1]DPAC Worksheet'!K33 -> 1380000 | C138: f | D138: 2 | E138: =FetchComment(D138) -> Suyat, Christian@DOT: 59A1130 03A3234 | F138: 2 | G138: =FetchComment(F138) -> Suyat, Christian@DOT: Alta Vista Solutions, Inc. PSOMAS | H138: 3,59
A139: OPTITRANS ENGINEERING INC | B139: ='[1]DPAC Worksheet'!O102 -> 100000 | C139: M | D139: 1 | E139: =FetchComment(D139) -> 07A5026 | F139: 1 | G139: =FetchComment(F139) -> HNTB CORPORATION | H139: 7
A140: Orito and Associates | B140: ='[1]DPAC Worksheet'!O107 -> 100000 | C140: M | D140: 1 | E140: =FetchComment(D140) -> Suyat, Christian@DOT: 07a5044 | F140: 1 | G140: =FetchComment(F140) -> Suyat, Christian@DOT: TRC Engineers, Inc. | H140: 7
A141: PAC RIM ENGINEERING | B141: ='[1]DPAC Worksheet'!O117 -> 200000 | C141: M | D141: 1 | E141: =FetchComment(D141) -> 07A5026 | F141: 1 | G141: =FetchComment(F141) -> HNTB CORPORATION | H141: 7
A142: Penecore Drilling | B142: ='[1]DPAC Worksheet'!O121 -> 30000 | C142: M | D142: 1 | E142: =FetchComment(D142) -> Suyat, Christian@DOT: 03A3148 | F142: 1 | G142: =FetchComment(F142) -> Suyat, Christian@DOT: Geocon Consultants | H142: 3
A143: PRESCIENCE CORPORATION | B143: ='[1]DPAC Worksheet'!O135 -> 2830000 | C143: M | D143: 4 | E143: =FetchComment(D143) -> 08A3183 59A1130 07a5044 03A3234 | F143: 4 | G143: =FetchComment(F143) -> WSP USA INC Alta Vista Solutions TRC Engineers, Inc. Psomas | H143: 3,7, 8, 59
A144: SILICON TRANSPORTATION | B144: ='[1]DPAC Worksheet'!O140 -> 120000 | C144: M | D144: 1 | E144: =FetchComment(D144) -> 11A3117 | F144: 1 | G144: =FetchComment(F144) -> KIMLEY-HORN ^ ASSOICATES INC | H144: 11
A145: TATSUMI AND PARTNERS | B145: ='[1]DPAC Worksheet'!O151 -> 984534.65 | C145: M | D145: 5 | E145: =FetchComment(D145) -> 12A1857 12A1861 12A1863 07A5026 07A5041 | F145: 3 | G145: =FetchComment(F145) -> TRANSYSTEMS CORPORATION AECOM TECHNICAL SERVICES INC HNTB CORPORATION | H145: 7,12
A146: TELMON ENGINEERING | B146: ='[1]DPAC Worksheet'!K43 -> 412500 | C146: F | D146: 2 | E146: =FetchComment(D146) -> 06A2641 06A2649 | F146: 1 | G146: =FetchComment(F146) -> STANTEC CONSULTING SERVIUCES INC | H146: 6
A147: TRANSMAT | B147: ='[1]DPAC Worksheet'!O159 -> 84384 | C147: M | D147: 1 | E147: =FetchComment(D147) -> 12A1860 | F147: 1 | G147: =FetchComment(F147) -> TRC ENGINEERS INC | H147: 12
A148: TRICERTUS LLC | B148: ='[1]DPAC Worksheet'!O165 -> 80000 | C148: M | D148: 1 | E148: =FetchComment(D148) -> 04A6043 | F148: 1 | G148: =FetchComment(F148) -> ARCADIS U.S. INC | H148: 4
A149: West Kern Environmental Consulting, LLC | B149: ='[1]DPAC Worksheet'!K47 -> 499999 | C149: F | D149: 1 | E149: =FetchComment(D149) -> Suyat, Christian@DOT: 06A2671 | F149: 1 | G149: =FetchComment(F149) -> Suyat, Christian@DOT: Parson Transportation Group | H149: 6
A150: WRECO | B150: ='[1]DPAC Worksheet'!O184 -> 2577077.04 | C150: M | D150: 7 | E150: =FetchComment(D150) -> 04A6021 06A2647 06A2655 06A2667 06A2673 03A3174 59A1136 | F150: 6 | G150: =FetchComment(F150) -> JACOBS ENGINEERING GROUP MICHAEL BAKER INTERNATIONAL INC NCM CORP ICF Jones & Stokes Stantect Consulting Services T.Y. Lin International | H150: 3,4,6,59
A151: Y & C TRANSPORTATION CONSULTANTS | B151: ='[1]DPAC Worksheet'!O191 -> 329000 | C151: M | D151: 2 | E151: =FetchComment(D151) -> 06A2655 06A2667 | F151: 1 | G151: =FetchComment(F151) -> NCM CORP | H151: 6
A154: Other | B154: Dollars | C154: M/F | D154: Contract | F154: Prime | H154: Districts
A159: Non Minority Women | B159: Dollars | C159: M/F | D159: Contract | F159: Prime | H159: Districts
A160: Albat | B160: ='[1]DPAC Worksheet'!AQ11 -> 300000 | C160: F | D160: 1 | E160: =FetchComment(D160) -> Suyat, Christian@DOT: 03A3234 | F160: 1 | G160: =FetchComment(F160) -> Suyat, Christian@DOT: Psomas | H160: 3
A161: ALERT-O-LITE INC | B161: ='[1]DPAC Worksheet'!AQ6 -> 80000 | C161: F | D161: 1 | E161: =FetchComment(D161) -> 59A1107 | F161: 1 | G161: =FetchComment(F161) -> KLEINFELDER INC | H161: 59
A162: Alta Archaeological | B162: ='[1]DPAC Worksheet'!AQ15 -> 249000 | C162: F | D162: 1 | E162: =FetchComment(D162) -> Suyat, Christian@DOT: 03A3163 | F162: 1 | G162: =FetchComment(F162) -> Suyat, Christian@DOT: Pacific Legacy, Inc | H162: 3
A163: APPLIED TECHNOLOGY | B163: ='[1]DPAC Worksheet'!AQ27 -> 400000 | C163: F | D163: 1 | E163: =FetchComment(D163) -> 04A6021 | F163: 1 | G163: =FetchComment(F163) -> JACOBS ENGINEERING GROUP | H163: 4
A164: AREA WEST ENVURONMENTAL | B164: ='[1]DPAC Worksheet'!AQ35 -> 544998.35 | C164: F | D164: 3 | E164: =FetchComment(D164) -> 04A6021 06A2671 06A2673 | F164: 3 | G164: =FetchComment(F164) -> JACOBS ENGINEERING GROUP Parson Transportation Group ICF Jones & Stokes | H164: 4,6
A165: Artemis Environmental Services, Inc. | B165: ='[1]DPAC Worksheet'!AQ39 -> 300000 | C165: F | D165: 1 | E165: =FetchComment(D165) -> Suyat, Christian@DOT: 11A3166 | F165: 1 | G165: =FetchComment(F165) -> Suyat, Christian@DOT: AECOM Technical Services | H165: 11
A166: AVILA TRAFFIC SAFETY | B166: ='[1]DPAC Worksheet'!AQ49 -> 400000 | C166: F | D166: 1 | E166: =FetchComment(D166) -> 59A1107 | F166: 1 | G166: =FetchComment(F166) -> KLEINFELDER INC | H166: 59
A167: Barrett’s Biological Surveys | B167: ='[1]DPAC Worksheet'!AQ53 -> 20000 | C167: F | D167: 1 | E167: =FetchComment(D167) -> Suyat, Christian@DOT: 11A3166 | F167: 1 | G167: =FetchComment(F167) -> Suyat, Christian@DOT: AECOM Technical Services | H167: 11
A168: BLUE LAKE CIVIL | B168: ='[1]DPAC Worksheet'!AQ64 -> 381000 | C168: F | D168: 4 | E168: =FetchComment(D168) -> 11A3117 03A3117 53A0252 06A2681 | F168: 2 | G168: =FetchComment(F168) -> KIMLEY-HORN ^ ASSOICATES INC KREBS CORPORATION | H168: 11,5,6,3
A169: Brookwater, Inc. | B169: ='[1]DPAC Worksheet'!AQ68 -> 77191.98 | C169: F | D169: 1 | E169: =FetchComment(D169) -> Suyat, Christian@DOT: 03A3174 | F169: 1 | G169: =FetchComment(F169) -> Suyat, Christian@DOT: Stantect Consulting Services | H169: 3
A170: CIVIL WORKS ENGINEERS | B170: ='[1]DPAC Worksheet'!AQ76 -> 858238.3 | C170: F | D170: 2 | E170: =FetchComment(D170) -> 06A2647 07A5026 | F170: 2 | G170: =FetchComment(F170) -> MICHAEL BAKER INTERNATIONAL INC HNTB CORPORATION | H170: 6,7
A171: COSTIN PUBLIC OUTREACH | B171: ='[1]DPAC Worksheet'!AQ88 -> 140000 | C171: F | D171: 1 | E171: =FetchComment(D171) -> 12A1869 | F171: 1 | G171: =FetchComment(F171) -> HNTB CORPORATION | H171: 12
A172: CQMS, Construction Quality Management Solutions | B172: ='[1]DPAC Worksheet'!AQ81 -> 100000 | C172: F | D172: 1 | E172: =FetchComment(D172) -> Suyat, Christian@DOT: 07a5044 | F172: 1 | G172: =FetchComment(F172) -> Suyat, Christian@DOT: TRC Engineers, Inc. | H172: 7
A173: DILLAR ENVIRONMENTAL SERVICES | B173: ='[1]DPAC Worksheet'!AQ97 -> 400000 | C173: F | D173: 1 | E173: =FetchComment(D173) -> 59A1107 | F173: 1 | G173: =FetchComment(F173) -> KLEINFELDER INC | H173: 59
A174: DZC, Archaeology and Cultural Resource Management | B174: ='[1]DPAC Worksheet'!AQ101 -> 249000 | C174: F | D174: 1 | E174: =FetchComment(D174) -> Suyat, Christian@DOT: 03A3163 | F174: 1 | G174: =FetchComment(F174) -> Suyat, Christian@DOT: Pacific Legacy, Inc | H174: 11
A175: Falcon Engineering Services, Inc | B175: ='[1]DPAC Worksheet'!AQ105 -> 600000 | C175: F | D175: 1 | E175: =FetchComment(D175) -> Suyat, Christian@DOT: 07A5030 | F175: 1 | G175: =FetchComment(F175) -> Suyat, Christian@DOT: AECOM Technical Services | H175: 7
A176: GATEWAY PACIFIC | B176: ='[1]DPAC Worksheet'!AQ110 -> 120000 | C176: F | D176: 1 | E176: =FetchComment(D176) -> 11A3117 | F176: 1 | G176: =FetchComment(F176) -> KIMLEY-HORN ^ ASSOICATES INC | H176: 11
A177: GSM Landscape Architects, Inc. | B177: ='[1]DPAC Worksheet'!AQ115 -> 128653.3 | C177: F | D177: 1 | E177: =FetchComment(D177) -> Suyat, Christian@DOT: 03A3174 | F177: 1 | G177: =FetchComment(F177) -> Suyat, Christian@DOT: Stantect Consulting Services | H177: 3
A178: HAYGOOD & ASSOCIATES | B178: ='[1]DPAC Worksheet'!AQ126 -> 223000 | C178: F | D178: 2 | E178: =FetchComment(D178) -> 06A2655 06A2667 | F178: 1 | G178: =FetchComment(F178) -> NCM CORP | H178: 6
A179: MONUMENT ROW INC | B179: ='[1]DPAC Worksheet'!AQ134 -> 70000 | C179: F | D179: 1 | E179: =FetchComment(D179) -> 12A1869 | F179: 1 | G179: =FetchComment(F179) -> HNTB CORPORATION | H179: 12
A180: MYRIAD ENGINEERING | B180: ='[1]DPAC Worksheet'!AQ143 -> 120000 | C180: F | D180: 1 | E180: =FetchComment(D180) -> 03A3120 | F180: 1 | G180: =FetchComment(F180) -> TRC ENGINEERS INC | H180: 3
A181: Natural Investigation Company | B181: ='[1]DPAC Worksheet'!AQ147 -> 249000 | C181: F | D181: 1 | E181: =FetchComment(D181) -> Suyat, Christian@DOT: 03A3163 | F181: 1 | G181: =FetchComment(F181) -> Suyat, Christian@DOT: Pacific Legacy, Inc | H181: 3
A182: NORTHGATE ENVIRONMENTAL | B182: ='[1]DPAC Worksheet'!AQ153 -> 100000 | C182: F | D182: 1 | E182: =FetchComment(D182) -> 04A6021 | F182: 1 | G182: =FetchComment(F182) -> JACOBS ENGINEERING GROUP | H182: 4
A183: P R R INC | B183: ='[1]DPAC Worksheet'!AQ198 -> 12000 | C183: F | D183: 1 | E183: =FetchComment(D183) -> 11A3117 | F183: 1 | G183: =FetchComment(F183) -> KIMLEY-HORN ^ ASSOICATES INC | H183: 11
A184: Paleo Solutions, Inc. | B184: ='[1]DPAC Worksheet'!AQ159 -> 721247.62 | C184: F | D184: 3 | E184: =FetchComment(D184) -> Suyat, Christian@DOT: 06A2671 06A2673 09A0841 | F184: 2 | G184: =FetchComment(F184) -> Suyat, Christian@DOT: Parson Transportation Group ICF Jones & Stokes | H184: 6,9
A185: PAVEMENT MANAGEMENT | B185: ='[1]DPAC Worksheet'!AQ169 -> 42192 | C185: F | D185: 1 | E185: =FetchComment(D185) -> 12A1860 | F185: 1 | G185: =FetchComment(F185) -> TRC ENGINEERS INC | H185: 12
A186: PanGIS Inc. | B186: ='[1]DPAC Worksheet'!AQ163 -> 240000 | C186: F | D186: 1 | E186: =FetchComment(D186) -> Suyat, Christian@DOT: 11A3166 | F186: 1 | G186: =FetchComment(F186) -> Suyat, Christian@DOT: AECOM Technical Services | H186: 11
A187: Piñon Heritage Solutions, LLC | B187: ='[1]DPAC Worksheet'!AQ173 -> 83000 | C187: F | D187: 1 | E187: =FetchComment(D187) -> Suyat, Christian@DOT: 03A3163 | F187: 1 | G187: =FetchComment(F187) -> Suyat, Christian@DOT: Pacific Legacy, Inc | H187: 3
A188: POLARIS CONSULTING | B188: ='[1]DPAC Worksheet'!AQ187 -> 150000 | C188: F | D188: 1 | E188: =FetchComment(D188) -> 06A2641 | F188: 1 | G188: =FetchComment(F188) -> STANTEC CONSULTING SERVICES INC | H188: 6
A189: RMM Environmental Planning | B189: ='[1]DPAC Worksheet'!AQ203 -> 64999.55 | C189: F | D189: 1 | E189: =FetchComment(D189) -> Suyat, Christian@DOT: 06A2673 | F189: 1 | G189: =FetchComment(F189) -> Suyat, Christian@DOT: ICF Jones & Stokes | H189: 6
A190: SAFEWORK INC | B190: ='[1]DPAC Worksheet'!AQ215 -> 70000 | C190: F | D190: 1 | E190: =FetchComment(D190) -> 12A1869 | F190: 1 | G190: =FetchComment(F190) -> HNTB CORPORATION | H190: 12
A191: Sequoia Ecological Consulting | B191: ='[1]DPAC Worksheet'!AQ221 -> 194998.65 | C191: F | D191: 1 | E191: =FetchComment(D191) -> Suyat, Christian@DOT: 06A2673 | F191: 1 | G191: =FetchComment(F191) -> Suyat, Christian@DOT: ICF Jones & Stokes | H191: 6
A192: SWAIM BIOLOGICAL CONSULTING | B192: ='[1]DPAC Worksheet'!AQ231 -> 600000 | C192: F | D192: 1 | E192: =FetchComment(D192) -> 04A6021 | F192: 1 | G192: =FetchComment(F192) -> JACOBS ENGINEERING GROUP | H192: 4
A193: Tiley Research | B193: ='[1]DPAC Worksheet'!AQ235 -> 249000 | C193: F | D193: 1 | E193: =FetchComment(D193) -> Suyat, Christian@DOT: 03A3163 | F193: 1 | G193: =FetchComment(F193) -> Suyat, Christian@DOT: Pacific Legacy, Inc | H193: 3
A194: Tremaine & Associates, Inc. | B194: ='[1]DPAC Worksheet'!AQ240 -> 249000 | C194: F | D194: 1 | E194: =FetchComment(D194) -> Suyat, Christian@DOT: 03A3163 | F194: 1 | G194: =FetchComment(F194) -> Suyat, Christian@DOT: Pacific Legacy, Inc | H194: 3
A195: Vandermost Consulting Services, Inc. | B195: ='[1]DPAC Worksheet'!AQ245 -> 62500 | C195: f | D195: 1 | E195: =FetchComment(D195) -> Suyat, Christian@DOT: 09A0841 | F195: 1 | G195: =FetchComment(F195) -> Suyat, Christian@DOT: Parsons Transportation Group, Inc, | H195: 9
A196: VRPA Technologies | B196: ='[1]DPAC Worksheet'!AQ253 -> 239999.6 | C196: F | D196: 2 | E196: =FetchComment(D196) -> Suyat, Christian@DOT: 06A2671 11A3166 | F196: 2 | G196: =FetchComment(F196) -> Suyat, Christian@DOT: Parson Transportation Group AECOM Technical Services | H196: 6,11
A197: WAGNER ENGINEERING | B197: ='[1]DPAC Worksheet'!AQ263 -> 100000 | C197: F | D197: 1 | E197: =FetchComment(D197) -> 07A5026 | F197: 1 | G197: =FetchComment(F197) -> HNTB CORPORATION | H197: 7
A198: Watearth | B198: ='[1]DPAC Worksheet'!AQ267 -> 51461.32 | C198: F | D198: 1 | E198: =FetchComment(D198) -> Suyat, Christian@DOT: 03A3174 | F198: 1 | G198: =FetchComment(F198) -> Suyat, Christian@DOT: Stantect Consulting Services | H198: 3
A199: Western Botanical Services | B199: ='[1]DPAC Worksheet'!AQ271 -> 51461.32 | C199: F | D199: 1 | E199: =FetchComment(D199) -> Suyat, Christian@DOT: 03A3174 | F199: 1 | G199: =FetchComment(F199) -> Suyat, Christian@DOT: Stantect Consulting Services | H199: 3
A202: =COUNTIF(#REF!, "33") -> 
A204: =COUNTIF(#REF!, "-4142") -> 
A205: Prime Name | B205: Contract Count | C205: Contract #s | D205: Prime Name | E205: Contract Count | F205: Contract #s | G205: Prime Name | H205: Contract Count | I205: Contract #s
A206: AECOM TECHNICAL SERVICES INC | B206: 3 | C206: =FetchComment(B206) -> 12A1861 07A5030 11A3166 | D206: KIMLEY-HORN & ASSOCIATES INC | E206: 1 | F206: =FetchComment(E206) -> 11A3117 | G206: WSP USA INC | H206: 2 | I206: =FetchComment(H206) -> 08A3183 03A3157
A207: ARCADIS U.S. INC | B207: 2 | C207: =FetchComment(B207) -> 07A4986 04A6043 | D207: KLEINFELDER INC | E207: 1 | F207: =FetchComment(E207) -> 59A1107
A208: ALTA VISTA SOLUTIONS | B208: 2 | C208: =FetchComment(B208) -> 08A3187 59A1130 | D208: KREBS CORPORATION | E208: 3 | F208: =FetchComment(E208) -> 03A3117 53A0252 06A2681
A209: CALIFORNIA ENGINEERING CONTRACTORS INC | B209: 1 | C209: =FetchComment(B209) -> 04A6091 | D209: MARK THOMAS & COMPANY INC | E209: 1 | F209: =FetchComment(E209) -> 03A3130
A210: CHAUDHARY & ASSOCIATES INC | B210: 2 | C210: =FetchComment(B210) -> 06A2613 04A6161 | D210: MICHAEL BAKER INTERNATIONAL INC | E210: 1 | F210: =FetchComment(E210) -> 06A2647
A211: DKS Associates | B211: 1 | C211: =FetchComment(B211) -> Suyat, Christian@DOT: 03A3147 | D211: NCM CORP | E211: 2 | F211: =FetchComment(E211) -> 06A2655 06A2667
A212: ELLE CONSULTANTS | B212: 1 | C212: =FetchComment(B212) -> 04A6036 | D212: Pacific Legacy, Inc | E212: 1 | F212: =FetchComment(E212) -> Suyat, Christian@DOT: 03A3163
A213: Fountainhead Consulting Corp | B213: 1 | C213: =FetchComment(B213) -> Suyat, Christian@DOT: 12A1887 | D213: PARSONS TRANSPORTATION GROUP INC | E213: 3 | F213: =FetchComment(E213) -> 08A3229 06A2671 09A0841
A214: Geocon Consultants | B214: 1 | C214: =FetchComment(B214) -> Suyat, Christian@DOT: 03A3148 | D214: Psomas | E214: 2 | F214: =FetchComment(E214) -> Suyat, Christian@DOT: 07A5067 03A3234
A215: GUIDA SURVEYING INC | B215: 1 | C215: =FetchComment(B215) -> 08A3230 | D215: STANTEC CONSULTING SERVICES INC | E215: 4 | F215: =FetchComment(E215) -> 06A2641 06A2649 07A5059 03A3174
A216: HNTB CORPORATION | B216: 2 | C216: =FetchComment(B216) -> 12A1869 07A5026 | D216: TRANSYSTEMS CORPORATION | E216: 3 | F216: =FetchComment(E216) -> 12A1857 12A1863 07A5041
A217: ICF Jones & Stokes | B217: 1 | C217: =FetchComment(B217) -> Suyat, Christian@DOT: 06A2673 | D217: TRC ENGINEERS INC | E217: 3 | F217: =FetchComment(E217) -> 12A1860 03A3120 07A5044
A218: JACOBS ENGINEERING GROUP INC | B218: 3 | C218: =FetchComment(B218) -> 11A3122 04A6021 07A5005 | D218: T.Y. Lin International | E218: 1 | F218: =FetchComment(E218) -> Suyat, Christian@DOT: 59A1136
A220: To see names of prime contractors/contract numbers, place your cursor on comment tab (red triangle).
A221: Caltrans DBE Reports: http://www.dot.ca.gov/hq/bep/reports.htm
